bitfinex/quotes_SOLUSD_20250619
["timestamp","ask_amount","ask_price","bid_price","bid_amount"]
[1750297648486,31.36723844,146.23,146.19,8.11866341]
[1750297649289,39.48590185,146.23,146.2,6.83994528]
[1750297649896,31.36723844,146.23,146.2,6.83994528]
[1750297650310,3.56723844,146.23,146.2,6.83994528]
[1750297653116,11.68590185,146.23,146.2,6.83994528]
[1750297656822,8.11866341,146.22,146.18,6.84068947]
[1750297656993,8.11866341,146.2,146.18,6.84068947]
[1750297657195,147.0,146.19,146.18,6.84068947]
[1750297658633,147.0,146.19,146.17,6.84134911]
[1750297660511,147.0,146.19,146.17,14.96001252]
[1750297663320,147.0,146.18,146.17,14.96001252]
[1750297669034,147.0,146.18,146.17,5.19354659]
[1750297669933,147.0,146.18,146.17,12.0348957]
[1750297672936,147.0,146.18,146.17,56.68454456]
[1750297674930,147.0,146.23,146.17,73.78791734]
[1750297675109,152.07366304,146.22,146.19,5.19354659]
[1750297675310,147.0,146.22,146.19,5.19354659]
[1750297676219,147.0,146.22,146.18,5.19354659]
[1750297677149,5.07372944,146.21,146.19,6.84041316]
[1750297677329,152.19354659,146.2,146.15,6.84228532]
[1750297677530,152.19354659,146.2,146.15,12.03583191]
[1750297677531,5.07253542,146.19,146.15,12.03583191]
[1750297677730,152.19354659,146.2,146.15,29.14154521]
[1750297677962,5.0729365,146.19,146.16,5.19354659]
[1750297678118,174.8,146.2,146.16,5.19354659]
[1750297678325,5.07362711,146.19,146.16,5.19354659]
[1750297678623,174.8,146.2,146.16,5.19354659]
[1750297678944,5.07361183,146.19,146.16,8.11658336]
[1750297679151,147.0,146.2,146.17,6.84134911]
[1750297679357,5.07371274,146.19,146.17,6.84134911]
[1750297679526,147.0,146.2,146.17,6.84134911]
[1750297679729,5.0737088,146.19,146.17,6.84134911]
[1750297679928,147.0,146.2,146.17,6.84134911]
[1750297680145,5.07215667,146.19,146.17,6.84134911]
[1750297680346,147.0,146.2,146.17,6.84134911]
[1750297680546,5.07184645,146.19,146.17,6.84134911]
[1750297680746,147.0,146.2,146.17,6.84134911]
[1750297680944,5.07184415,146.19,146.17,14.95793247]
[1750297681137,147.0,146.2,146.17,14.95793247]
[1750297682540,147.0,146.19,146.17,14.95793247]
[1750297689757,147.0,146.19,146.18,8.11658336]
[1750297689956,27.8,146.21,146.18,8.11658336]
[1750297690157,5.06404251,146.2,146.17,23.94472189]
[1750297690441,40.98039246,146.22,146.18,8.11658336]
[1750297690442,7.1691427,146.21,146.18,8.11658336]
[1750297690664,5.06410405,146.2,146.18,8.11658336]
[1750297690841,7.1691427,146.21,146.18,8.11658336]
[1750297691164,27.8,146.22,146.18,8.11658336]
[1750297691466,5.06445373,146.21,146.18,8.11658336]
[1750297691650,32.86413471,146.22,146.19,6.84041316]
[1750297691840,5.06386695,146.21,146.19,6.84041316]
[1750297692039,32.86413471,146.22,146.19,6.84041316]
[1750297692238,5.0641452,146.21,146.19,6.84041316]
[1750297692556,27.78,146.22,146.19,14.95699652]
[1750297692751,44.52618843,146.23,146.19,14.95699652]
[1750297692952,5.06334045,146.22,146.19,14.95699652]
[1750297693162,39.46365307,146.23,146.19,14.95699652]
[1750297693345,5.06339452,146.22,146.19,14.95699652]
[1750297693535,2.53164065,146.22,146.19,32.05802942]
[1750297693739,8.20336326,146.23,146.21,8.11658336]
[1750297694058,5.06315356,146.22,146.21,8.11658336]
[1750297694241,5.06315356,146.22,146.19,23.94144606]
[1750297694449,8.20336326,146.23,146.21,8.11658336]
[1750297694657,5.06314253,146.22,146.21,8.11658336]
[1750297694856,3.56706971,146.23,146.21,8.11658336]
[1750297695163,17.29544935,146.27,146.22,8.11658336]
[1750297695347,15.79896694,146.26,146.23,8.11658336]
[1750297695553,13.17726861,146.25,146.22,6.83900971]
[1750297695740,5.06045073,146.24,146.22,6.83900971]
[1750297695941,147.0,146.24,146.22,6.83900971]
[1750297697968,147.0,146.24,146.21,6.83947746]
[1750297698155,147.0,146.24,146.21,14.95606082]
[1750297699050,147.0,146.24,146.21,32.05475447]
[1750297699266,147.0,146.24,146.23,8.11658336]
[1750297699779,147.0,146.24,146.22,8.11658336]
[1750297700273,147.0,146.24,146.23,6.83854202]
[1750297701561,31.34635808,146.26,146.23,6.83854202]
[1750297701757,5.05613061,146.25,146.23,6.83854202]
[1750297702346,31.34635808,146.26,146.23,6.83854202]
[1750297702757,5.05548229,146.25,146.23,6.83854202]
[1750297703468,31.34635808,146.26,146.23,6.83854202]
[1750297704775,10.24290453,146.25,146.22,6.83896223]
[1750297704983,7.71663957,146.25,146.22,6.83896223]
[1750297705190,147.0,146.23,146.2,12.02998032]
[1750297705361,152.19046984,146.23,146.2,6.83951048]
[1750297705955,152.19046984,146.23,146.17,5.19046984]
[1750297705956,5.19046984,146.21,146.17,5.19046984]
[1750297706162,10.24152137,146.21,146.17,5.19046984]
[1750297706481,5.19046984,146.21,146.17,5.19046984]
[1750297706652,10.24088898,146.21,146.18,6.8408811]
[1750297707280,10.24105025,146.21,146.18,6.8408811]
[1750297708889,13.16662806,146.21,146.17,8.11604765]
[1750297709060,5.05058041,146.21,146.18,8.11604765]
[1750297709754,5.05058041,146.21,146.17,8.11604765]
[1750297710185,5.05311326,146.21,146.17,8.11604765]
[1750297710484,147.0,146.2,146.17,8.11604765]
[1750297710987,147.0,146.2,146.18,6.8408811]
[1750297711976,155.11604765,146.2,146.16,6.84181718]
[1750297712160,155.11604765,146.2,146.13,43.1069062]
[1750297712161,8.11604765,146.18,146.14,14.95880117]
[1750297712574,35.89604765,146.18,146.14,14.95880117]
[1750297713091,35.89604765,146.18,146.14,6.84275352]
[1750297714613,8.11604765,146.17,146.13,6.84303653]
[1750297714802,8.11604765,146.15,146.11,8.11604765]
[1750297715010,182.89604765,146.14,146.1,6.84462696]
[1750297715692,3.57005363,146.13,146.1,14.96067461]
[1750297718067,3.57005363,146.13,146.12,8.11604765]
[1750297718274,147.0,146.14,146.12,8.11604765]
[1750297718589,147.0,146.14,146.13,6.84322178]
[1750297718997,147.0,146.14,146.11,14.96002937]
[1750297719190,186.46572514,146.14,146.11,6.84398172]
[1750297719698,178.34967749,146.14,146.11,6.84398172]
[1750297719910,186.46572514,146.14,146.11,6.84398172]
[1750297720273,178.34967749,146.14,146.11,6.84398172]
[1750297722387,178.34967749,146.14,146.07,8.11604765]
[1750297722388,8.11604765,146.12,146.07,8.11604765]
[1750297722574,8.11604765,146.1,146.06,14.96254908]
[1750297725507,8.11604765,146.1,146.06,8.11604765]
[1750297726383,180.66,146.11,146.08,8.11604765]
[1750297726899,152.88,146.11,146.08,8.11604765]
[1750297727102,152.88,146.11,146.09,6.84509548]
[1750297728183,147.0,146.1,146.09,6.84509548]
[1750297728994,147.0,146.1,146.08,6.84556407]
[1750297733313,147.0,146.1,146.07,6.84584871]
[1750297733314,155.11604765,146.1,146.07,6.84584871]
[1750297733481,147.0,146.1,146.07,6.84584871]
[1750297734105,147.0,146.09,146.07,6.84584871]
[1750297734314,147.0,146.08,146.07,6.84584871]
[1750297735211,147.0,146.08,146.07,8.11604765]
[1750297736801,147.0,146.08,146.07,14.96208037]
[1750297753829,147.0,146.08,146.07,33.61172923]
[1750297755339,147.0,146.08,146.07,14.96208037]
[1750297758636,147.0,146.08,146.07,40.15572923]
[1750297758843,147.0,146.08,146.07,48.27177688]
[1750297759011,147.0,146.08,146.07,40.15572923]
[1750297759708,147.0,146.08,146.07,14.96208037]
[1750297767124,147.0,146.08,146.07,6.84603272]
[1750297767320,147.0,146.08,146.07,14.96208037]
[1750297768150,147.0,146.08,146.07,6.84603272]
[1750297768350,147.0,146.08,146.07,14.96208037]
[1750297776059,147.0,146.08,146.07,8.11604765]
[1750297776954,147.0,146.08,146.07,5.2002414]
[1750297778062,147.0,146.08,146.07,12.04627412]
[1750297792350,147.0,146.08,146.07,56.69592298]
[1750297793380,147.0,146.14,146.07,73.81100479]
[1750297793584,152.1022755,146.13,146.11,5.2002414]
[1750297793764,147.0,146.12,146.11,5.2002414]
[1750297794391,152.10280485,146.12,146.11,12.04439991]
[1750297796073,147.0,146.12,146.11,12.04439991]
[1750297797273,147.0,146.17,146.11,29.15479618]
[1750297797463,5.10230045,146.16,146.15,5.2002414]
[1750297797784,7.6554774,146.16,146.14,5.2002414]
[1750297798079,5.10230045,146.15,146.14,5.2002414]
[1750297798287,5.10230045,146.15,146.13,5.2002414]
[1750297798489,150.56856283,146.17,146.13,5.2002414]
[1750297798780,154.65197985,146.16,146.13,5.2002414]
[1750297798989,7.65197985,146.15,146.12,8.12120307]
[1750297799159,5.10007152,146.14,146.13,8.12120307]
[1750297799490,5.10007152,146.14,146.12,14.96489318]
[1750297799657,182.90120307,146.16,146.12,14.96489318]
[1750297799857,7.6511968,146.15,146.12,14.96489318]
[1750297800164,5.09955033,146.14,146.12,14.96489318]
[1750297800370,182.90120307,146.16,146.11,34.12120307]
[1750297800371,10.67284989,146.15,146.11,34.12120307]
[1750297800572,2.55156734,146.14,146.11,34.12120307]
[1750297800786,5.10623389,146.15,146.12,8.12120307]
[1750297800991,7.65095635,146.14,146.12,8.12120307]
[1750297801177,5.10623389,146.15,146.12,8.12120307]
[1750297801500,7.65092596,146.14,146.12,14.96487642]
[1750297801674,5.09936389,146.13,146.12,14.96487642]
[1750297802069,2.55149836,146.14,146.12,14.96487642]
[1750297802574,2.55117363,146.14,146.12,14.96487642]
[1750297803176,5.10622996,146.13,146.12,14.96487642]
[1750297803375,2.55118388,146.14,146.12,14.96487642]
[1750297803896,5.10623389,146.15,146.12,14.96487642]
[1750297804192,5.10614173,146.14,146.12,14.96487642]
[1750297804490,2.55285282,146.14,146.11,8.12120307]
[1750297804699,2.55285282,146.14,146.12,8.12120307]
[1750297806197,2.55292548,146.14,146.12,8.12120307]
[1750297806372,5.10623389,146.15,146.12,14.96466188]
[1750297806701,7.65759503,146.14,146.12,14.96466188]
[1750297806873,2.55256939,146.14,146.12,14.96466188]
[1750297807197,2.55256717,146.14,146.12,14.96466188]
[1750297807405,5.10458482,146.13,146.12,14.96466188]
[1750297809112,5.10425481,146.13,146.12,14.96466188]
[1750297811797,5.10425481,146.13,146.09,6.84509548]
[1750297811988,152.10318809,146.12,146.1,8.12120307]
[1750297812188,147.0,146.12,146.11,8.12120307]
[1750297812394,152.10370749,146.12,146.11,8.12120307]
[1750297812876,152.10370749,146.12,146.11,14.96536158]
[1750297814093,152.10370749,146.12,146.11,6.84415851]
[1750297814295,152.10370749,146.12,146.11,14.96536158]
[1750297814691,147.0,146.12,146.11,6.84415851]
[1750297814893,152.1066876,146.12,146.11,6.84415851]
[1750297815297,152.1066876,146.12,146.1,14.96572801]
[1750297815600,147.0,146.12,146.1,14.96572801]
[1750297816087,147.0,146.11,146.09,8.12120307]
[1750297816279,147.0,146.11,146.08,8.12120307]
[1750297817887,150.57034929,146.11,146.08,8.12120307]
[1750297818607,150.57034929,146.11,146.08,14.96640479]
[1750297819900,147.0,146.1,146.08,14.96640479]
[1750297820103,147.0,146.09,146.08,14.96640479]
[1750297820786,147.0,146.09,146.08,12.04599363]
[1750297821513,147.0,146.09,146.06,6.84650143]
[1750297821811,147.0,146.09,146.08,5.20079191]
[1750297822190,147.0,146.09,146.08,12.04635598]
[1750297824617,147.0,146.09,146.05,23.96341632]
[1750297824815,147.0,146.09,146.08,5.20079191]
[1750297826193,147.0,146.09,146.08,12.04635598]
[1750297827503,147.0,146.09,146.05,23.96341632]
[1750297827712,3.57034929,146.11,146.08,5.20079191]
[1750297827905,12.34677996,146.1,146.08,5.20079191]
[1750297828100,5.10648483,146.09,146.08,5.20079191]
[1750297829009,5.10484528,146.09,146.08,12.04621251]
[1750297831519,8.25509606,146.11,146.08,12.04621251]
[1750297831719,5.10483922,146.1,146.09,5.20079191]
[1750297832019,5.10575377,146.1,146.08,12.04621251]
[1750297832222,8.25509606,146.11,146.09,5.20079191]
[1750297832424,5.10542236,146.1,146.09,5.20079191]
[1750297832721,5.10542236,146.1,146.08,12.04621251]
[1750297832920,10.80780653,146.11,146.08,12.04621251]
[1750297833122,5.10535114,146.1,146.08,12.04621251]
[1750297833309,10.80780653,146.11,146.08,12.04621251]
[1750297833511,5.10427638,146.1,146.08,12.04621251]
[1750297833714,10.80780653,146.11,146.08,12.04621251]
[1750297833911,5.10414075,146.1,146.08,12.04621251]
[1750297834115,10.80780653,146.11,146.08,12.04621251]
[1750297834316,5.10268202,146.1,146.08,12.04621251]
[1750297834619,6.12125271,146.11,146.08,12.04621251]
[1750297834803,5.1008545,146.1,146.08,12.04621251]
[1750297835002,10.80408975,146.11,146.08,12.04621251]
[1750297835302,5.09977478,146.1,146.08,12.04621251]
[1750297835503,10.80408975,146.11,146.08,12.04621251]
[1750297835703,5.09988053,146.1,146.09,5.20079191]
[1750297837533,147.0,146.09,146.05,6.84697021]
[1750297837737,45.30592129,146.1,146.06,5.20079191]
[1750297837738,147.0,146.08,146.06,5.20079191]
[1750297837941,147.0,146.08,146.06,12.04697889]
[1750297838298,150.57120776,146.08,146.06,6.84618698]
[1750297839612,150.57120776,146.08,146.06,5.20079191]
[1750297840922,150.57120776,146.08,146.06,12.04685076]
[1750297842052,150.57120776,146.08,146.07,5.20079191]
[1750297842414,147.0,146.08,146.07,5.20079191]
[1750297843022,147.0,146.08,146.07,12.04682463]
[1750297851539,147.0,146.08,146.07,5.20079191]
[1750297852736,147.0,146.08,146.07,12.04682463]
[1750297856872,147.0,146.08,146.07,5.20079191]
[1750297859152,147.0,146.08,146.07,12.04682463]
[1750297863730,152.10900288,146.08,146.04,6.84743905]
[1750297863945,5.10900288,146.07,146.04,6.84743905]
[1750297864133,5.10913125,146.06,146.04,12.04823096]
[1750297864337,2.55453716,146.07,146.04,12.04823096]
[1750297864534,5.10892018,146.06,146.04,12.04823096]
[1750297864761,4.67377564,146.07,146.04,12.04823096]
[1750297865055,5.10850548,146.06,146.04,12.04823096]
[1750297865351,7.22753694,146.07,146.04,12.04823096]
[1750297865538,5.10792948,146.06,146.04,12.04823096]
[1750297865854,4.67112093,146.07,146.04,12.04823096]
[1750297866158,5.10539987,146.06,146.04,12.04823096]
[1750297866344,4.67112093,146.07,146.04,12.04823096]
[1750297866551,5.10575407,146.06,146.04,12.04823096]
[1750297866749,32.43112093,146.07,146.02,6.84837693]
[1750297866944,159.33089074,146.06,146.03,5.20079191]
[1750297867143,5.10661185,146.05,146.03,5.20079191]
[1750297867346,147.0,146.06,146.03,5.20079191]
[1750297867547,5.10422823,146.05,146.03,5.20079191]
[1750297867863,147.0,146.06,146.03,5.20079191]
[1750297868045,5.10420829,146.05,146.04,6.84743905]
[1750297868364,5.10420829,146.05,146.03,12.04855932]
[1750297868552,147.0,146.06,146.03,12.04855932]
[1750297868866,5.10572346,146.05,146.03,12.04855932]
[1750297869034,147.0,146.06,146.03,12.04855932]
[1750297869328,5.10599902,146.05,146.03,12.04855932]
[1750297869533,147.0,146.06,146.03,12.04855932]
[1750297873149,147.0,146.05,146.03,12.04855932]
[1750297873651,147.0,146.05,146.04,5.20079191]
[1750297875060,147.0,146.05,146.04,12.04823096]
[1750297878973,36.55213898,146.08,146.04,12.04823096]
[1750297879161,5.09614318,146.07,146.04,12.04823096]
[1750297884379,3.56751962,146.06,146.04,12.04823096]
[1750297885187,3.56751962,146.06,146.01,23.97087818]
[1750297885479,3.56751962,146.06,146.04,5.20079191]
[1750297887776,3.56751962,146.06,146.05,6.84697021]
[1750297888878,3.56751962,146.06,146.01,23.97087818]
[1750297889050,147.0,146.04,146.01,23.97087818]
[1750297889254,147.0,146.04,146.03,5.20079191]
[1750297891493,147.0,146.04,146.03,12.04869987]
[1750297897689,147.0,146.04,146.01,6.84884596]
[1750297897866,147.0,146.03,146.0,5.20079191]
[1750297898069,179.96079191,146.02,145.98,12.05085259]
[1750297898275,147.0,146.01,145.98,6.85006068]
[1750297899270,147.0,146.0,145.98,6.85006068]
[1750297899474,147.0,145.99,145.98,6.85006068]
[1750297900693,147.0,145.99,145.98,12.05085259]
[1750297902699,32.96079191,146.02,145.98,12.05085259]
[1750297904697,3.5658865,146.01,145.98,12.05085259]
[1750297905896,8.67095222,146.01,145.98,12.05085259]
[1750297906196,8.67090641,146.01,145.98,12.05085259]
[1750297906393,8.67090641,146.01,145.98,6.85006068]
[1750297906698,3.5658865,146.01,145.98,12.05085259]
[1750297907375,8.66738681,146.01,145.98,12.05085259]
[1750297908091,3.5658865,146.01,145.98,12.05085259]
[1750297908476,8.66913724,146.01,145.98,12.05085259]
[1750297909807,3.5658865,146.01,145.98,12.05085259]
[1750297910601,3.5658865,146.01,145.97,5.20079191]
[1750297910786,11.31842304,146.01,145.96,5.20079191]
[1750297911802,5.10325461,146.0,145.96,5.20079191]
[1750297912603,16.42160038,146.01,145.97,6.85072275]
[1750297913308,5.20079191,146.0,145.97,6.85072275]
[1750297913504,32.96079191,146.0,145.97,6.85072275]
[1750297913804,152.20079191,145.99,145.95,12.05245343]
[1750297914009,147.0,145.98,145.95,12.05245343]
[1750297914507,179.96079191,145.98,145.95,6.85166152]
[1750297914686,179.96079191,145.98,145.94,6.85213101]
[1750297917213,179.96079191,145.98,145.94,12.05292292]
[1750297917584,147.0,145.97,145.94,12.05292292]
[1750297920998,147.0,145.97,145.94,6.85213101]
[1750297922589,5.20079191,145.95,145.92,6.8529007]
[1750297922801,147.0,145.94,145.92,6.8529007]
[1750297922997,174.76,145.94,145.92,6.8529007]
[1750297923200,179.96079191,145.94,145.91,6.8533955]
[1750297923521,179.96079191,145.94,145.9,6.85393283]
[1750297924223,152.20079191,145.93,145.9,6.85393283]
[1750297924994,155.76568522,145.93,145.9,6.85393283]
[1750297925491,150.56489331,145.93,145.9,6.85393283]
[1750297925828,150.56489331,145.93,145.91,5.20079191]
[1750297926112,150.56489331,145.93,145.9,6.85393283]
[1750297926313,150.56489331,145.93,145.91,5.20079191]
[1750297927013,150.56489331,145.93,145.92,6.85307017]
[1750297929148,150.56489331,145.93,145.91,6.85353985]
[1750297929325,147.0,145.92,145.91,6.85353985]
[1750297929651,3.56489331,145.93,145.91,6.85353985]
[1750297932722,5.20079191,145.92,145.89,6.85406997]
[1750297933168,32.98079191,145.92,145.89,6.85406997]
[1750297933327,27.78,145.92,145.89,6.85406997]
[1750297935253,147.0,145.91,145.89,6.85406997]
[1750297939155,147.0,145.91,145.88,6.85486839]
[1750297939338,147.0,145.9,145.88,6.85486839]
[1750297940055,147.0,145.9,145.86,6.8558892]
[1750297940247,147.0,145.89,145.86,12.05668111]
[1750297940868,147.0,145.89,145.86,6.8558892]
[1750297942234,152.20079191,145.89,145.86,6.8558892]
[1750297944040,147.0,145.88,145.86,6.8558892]
[1750297944250,147.0,145.87,145.86,6.8558892]
[1750297946040,147.0,145.87,145.86,12.05668111]
[1750297947265,147.0,145.87,145.86,6.8558892]
[1750297951670,147.0,145.87,145.86,12.05668111]
[1750297952675,147.0,145.87,145.86,6.8558892]
[1750297958085,147.0,145.87,145.85,6.85635927]
[1750297960692,150.5660472,145.87,145.85,6.85635927]
[1750297961996,147.0,145.86,145.85,6.85635927]
[1750297963204,147.0,145.91,145.86,1.5231]
[1750297963575,150.56510131,145.91,145.88,5.20079191]
[1750297964487,150.56510131,145.91,145.89,6.8544794]
[1750297966305,155.76589322,145.91,145.88,6.85480191]
[1750297966600,155.76589322,145.91,145.85,12.05715118]
[1750297966601,5.20079191,145.89,145.85,12.05715118]
[1750297966984,179.98079191,145.9,145.85,12.05715118]
[1750297968200,152.20079191,145.89,145.85,12.05715118]
[1750297969691,38.09272014,145.88,145.85,6.85635927]
[1750297969989,32.98079191,145.88,145.85,6.85635927]
[1750297970588,27.78,145.88,145.85,6.85635927]
[1750297970795,35.93328455,145.88,145.84,23.99877134]
[1750297973101,35.93328455,145.88,145.84,6.8568294]
[1750297973705,147.0,145.87,145.84,6.8568294]
[1750297973913,155.15328455,145.87,145.84,6.8568294]
[1750297975118,155.15328455,145.86,145.84,6.8568294]
[1750297975289,147.0,145.85,145.84,6.8568294]
[1750297976330,147.0,145.85,145.84,15.01011395]
[1750297977412,147.0,145.85,145.84,6.8568294]
[1750297978717,147.0,145.85,145.84,15.01011395]
[1750297979720,27.78,145.87,145.84,6.8568294]
[1750297979919,5.11091638,145.86,145.84,6.8568294]
[1750297980121,27.78,145.87,145.84,6.8568294]
[1750297980425,147.0,145.84,145.83,6.85712437]
[1750297981728,35.93328455,145.85,145.81,8.15328455]
[1750297982023,147.0,145.83,145.81,8.15328455]
[1750297983105,147.0,145.83,145.82,6.85776985]
[1750297984219,8.15328455,145.84,145.8,6.85871056]
[1750297984390,3.56473906,145.83,145.8,6.85871056]
[1750297985119,3.56473906,145.83,145.79,24.00603604]
[1750297985297,3.56473906,145.83,145.79,32.15932059]
[1750297985489,31.34473906,145.83,145.79,32.15932059]
[1750297987201,8.15328455,145.82,145.79,6.85918101]
[1750297987603,27.78,145.81,145.79,6.85918101]
[1750297987802,8.15328455,145.8,145.77,6.86012211]
[1750297989193,8.15328455,145.78,145.75,6.86106346]
[1750297989701,182.93328455,145.79,145.75,6.86106346]
[1750297990099,147.0,145.78,145.75,6.86106346]
[1750297990430,27.78,145.77,145.73,8.15328455]
[1750297990592,147.0,145.76,145.73,8.15328455]
[1750297991012,147.0,145.76,145.72,6.86247598]
[1750297991215,147.0,145.76,145.74,6.86153423]
[1750297992633,147.0,145.76,145.73,8.15328455]
[1750297992634,8.15328455,145.75,145.72,6.86247598]
[1750297992924,27.78,145.75,145.72,15.01576053]
[1750297993108,182.95328455,145.76,145.72,15.01576053]
[1750297993310,3.56592463,145.74,145.72,15.01576053]
[1750297993509,3.56592463,145.74,145.72,6.86247598]
[1750297993708,3.56592463,145.74,145.72,15.01576053]
[1750297994110,3.56592463,145.74,145.73,8.15328455]
[1750297994326,3.56592463,145.74,145.72,6.86247598]
[1750297994531,3.56592463,145.74,145.72,15.01576053]
[1750297997144,3.56592463,145.74,145.72,6.86247598]
[1750297997440,147.0,145.73,145.72,15.01576053]
[1750297998631,147.0,145.73,145.72,33.66540939]
[1750297999515,5.86,145.77,145.73,18.64964886]
[1750297999840,5.86,145.77,145.76,8.15328455]
[1750298000800,5.86,145.77,145.76,15.0138773]
[1750298001005,5.86,145.77,145.76,6.86059275]
[1750298001205,5.86,145.77,145.76,15.0138773]
[1750298002640,27.86,145.81,145.76,32.16535918]
[1750298002824,3.56466486,145.8,145.79,6.85918101]
[1750298008513,3.56466486,145.8,145.78,6.85965152]
[1750298009222,147.0,145.79,145.78,6.85965152]
[1750298011438,147.0,145.79,145.78,8.15328455]
[1750298012317,5.86,145.82,145.78,8.15328455]
[1750298012522,5.86,145.82,145.81,8.15328455]
[1750298013631,5.86,145.82,145.81,15.01152472]
[1750298014824,5.86,145.82,145.81,6.85824017]
[1750298015039,5.86,145.82,145.81,15.01152472]
[1750298016030,3.56392342,145.84,145.81,32.15712515]
[1750298016348,3.56392342,145.84,145.83,8.15328455]
[1750298016751,3.56392342,145.84,145.83,15.01058414]
[1750298021574,147.0,145.85,145.83,6.85729959]
[1750298021781,147.0,145.85,145.84,8.15328455]
[1750298022074,10.09329728,145.86,145.84,8.15328455]
[1750298022240,10.09329728,145.86,145.85,8.15328455]
[1750298023579,10.09329728,145.86,145.85,15.00964382]
[1750298024265,152.9,145.9,145.85,32.150542]
[1750298024572,3.56556283,145.89,145.87,8.15328455]
[1750298025256,3.56556283,145.89,145.88,6.85494927]
[1750298029984,3.56556283,145.89,145.88,15.00823382]
[1750298030672,152.9,145.9,145.88,15.00823382]
[1750298030859,152.9,145.9,145.89,8.15328455]
[1750298031784,152.9,145.9,145.89,15.00776395]
[1750298033765,152.9,145.9,145.89,6.8544794]
[1750298033974,156.46690663,145.9,145.89,6.8544794]
[1750298035282,156.46690663,145.9,145.87,17.13825058]
[1750298035491,156.46690663,145.9,145.88,8.15328455]
[1750298037698,156.46690663,145.9,145.89,6.8544794]
[1750298038759,9.46690663,145.9,145.89,6.8544794]
[1750298040595,9.46690663,145.9,145.88,8.15328455]
[1750298040596,45.42019118,145.9,145.86,6.8558892]
[1750298040882,155.15328455,145.89,145.86,6.8558892]
[1750298041063,182.97328455,145.88,145.86,6.8558892]
[1750298041785,182.97328455,145.88,145.85,6.85635927]
[1750298042994,147.0,145.87,145.85,6.85635927]
[1750298043287,147.0,145.86,145.83,8.15328455]
[1750298043474,174.82,145.86,145.83,8.15328455]
[1750298044370,174.82,145.86,145.84,6.8568294]
[1750298047563,147.0,145.85,145.82,32.15547903]
[1750298050687,147.0,145.84,145.82,32.15547903]
[1750298050888,147.0,145.84,145.82,6.85776985]
[1750298051190,147.0,145.83,145.82,6.85776985]
[1750298051382,8.15328455,145.85,145.82,6.85776985]
[1750298052789,35.97328455,145.85,145.82,6.85776985]
[1750298052992,35.97328455,145.85,145.81,6.85824017]
[1750298054294,3.56683612,145.84,145.81,15.01152472]
[1750298056478,147.0,145.82,145.81,15.01152472]
[1750298058391,147.0,145.82,145.81,6.85824017]
[1750298058579,147.0,145.82,145.81,15.01152472]
[1750298070787,147.0,145.82,145.81,5.21962575]
[1750298071919,147.0,145.82,145.81,12.07786592]
[1750298080923,147.0,145.82,145.81,51.60601778]
[1750298081109,147.0,145.82,145.81,53.24091778]
[1750298085715,147.0,145.82,145.81,53.30949978]
[1750298086224,5.88,145.86,145.82,18.64964886]
[1750298086415,5.88,145.86,145.85,5.21962575]
[1750298087027,5.88,145.86,145.85,12.07598502]
[1750298091516,150.57584412,145.88,145.85,12.07598502]
[1750298091727,5.12689051,145.87,145.85,12.07598502]
[1750298091914,32.99962575,145.86,145.85,6.85635927]
[1750298092111,45.43399237,145.86,145.85,6.85635927]
[1750298092820,45.43399237,145.86,145.81,17.21407859]
[1750298093123,45.43399237,145.86,145.82,5.21962575]
[1750298093124,152.12668265,145.85,145.82,5.21962575]
[1750298093425,147.0,145.85,145.82,5.21962575]
[1750298095009,147.0,145.85,145.83,6.85729959]
[1750298098027,147.0,145.84,145.83,6.85729959]
[1750298098918,147.0,145.84,145.83,12.07692534]
[1750298103452,3.57584412,145.88,145.83,29.22017432]
[1750298103605,3.57584412,145.88,145.87,5.21962575]
[1750298103810,8.70684129,145.88,145.87,5.21962575]
[1750298104111,8.70757804,145.88,145.87,5.21962575]
[1750298104536,3.57584412,145.88,145.87,12.07504495]
[1750298104719,8.70744306,145.88,145.87,12.07504495]
[1750298105037,3.57584412,145.88,145.87,12.07504495]
[1750298105811,147.0,145.89,145.87,12.07504495]
[1750298106141,147.0,145.89,145.88,5.21962575]
[1750298106327,152.13034964,145.89,145.88,5.21962575]
[1750298107629,152.13034964,145.89,145.82,6.85776985]
[1750298107630,222.01601395,145.89,145.82,6.85776985]
[1750298107821,5.21962575,145.86,145.82,6.85776985]
[1750298108020,32.90717717,145.85,145.82,6.85776985]
[1750298108217,27.78,145.85,145.82,6.85776985]
[1750298108420,5.12674494,145.84,145.82,6.85776985]
[1750298108730,27.78,145.85,145.82,6.85776985]
[1750298108935,5.12674415,145.84,145.82,6.85776985]
[1750298109116,35.9371072,145.85,145.82,6.85776985]